{"text_format":"1","workbook":"xlsx","n_sheets":3,"sheets":["Krycí list","Rekapitulace","Položky"],"not_rendered":{"charts":0,"images":0,"macros":0,"external_links":0,"defined_names":52,"comments":0,"pivot_tables":0},"unopened":[],"bounds":{"document_bytes":16777216,"sheet_cells":100000,"rows_first":2000,"rows_last":500,"rows_between":2000,"halvings":0,"cell_chars":16384,"cell_head_chars":4096},"cells_cut":0,"cells_raw":0,"read":"whole","date_system":"1900"}

{"sheet":"Krycí list","index":0,"n_rows":45,"n_cols":8,"rows_kept":45,"cut":false,"hidden":false,"merged":[[36,1,44,6],[7,2,7,4],[8,2,8,4],[9,2,9,4],[10,2,10,4],[11,2,11,4],[22,0,22,1],[29,5,29,6],[30,5,30,6],[31,5,31,6],[32,5,32,6],[33,5,33,6],[51,1,51,6],[52,1,52,6],[53,1,53,6],[54,1,54,6],[45,1,45,6],[46,1,46,6],[47,1,47,6],[48,1,48,6],[49,1,49,6],[50,1,50,6]]}
["POLOŽKOVÝ ROZPOČET"]
["Rozpočet",null,{"$f":"Rekapitulace!H1","v":"3405/100"},{"$f":"Rekapitulace!G2","v":"Úpravy parkoviště a dopravní značení"},null,"JKSO ","822.55"]
[]
["Objekt",null,"Název objektu",null,null,"SKP "]
["100",null,"Úpravy parkoviště",null,null,"Měrná jednotka"]
["Stavba",null,"Název stavby",null,null,"Počet jednotek"]
["3405",null,"Turnov - Parkoviště \"Na Lukách\"",null,null,"Náklady na m.j."]
["Projektant",null,"Ing. Jaroslav Wolf - WM ATELIER, Železný Brod",null,null,"Typ rozpočtu"]
["Zpracovatel projektu",null,"Ing. Jaroslav Wolf - WM ATELIER, Železný Brod"]
["Objednatel",null,"Město TURNOV"]
["Dodavatel",null,null,null,null,"Zakázkové číslo ","1805/2024"]
["Rozpočtoval",null,null,null,null,"Počet listů",6]
["ROZPOČTOVÉ NÁKLADY"]
["Základní rozpočtové náklady",null,null,"Ostatní rozpočtové náklady"]
[null,"HSV celkem",{"$f":"HSV","v":0},{"$f":"Rekapitulace!A19","v":"Zařízení staveniště"},null,null,{"$f":"Rekapitulace!I19","v":0}]
["Z","PSV celkem",{"$f":"PSV","v":0},{"$f":"Rekapitulace!A20","v":"Kompletační činnost (IČD)"},null,null,{"$f":"Rekapitulace!I20","v":0}]
["R","M práce celkem",{"$f":"Mont","v":0},{"$f":"Rekapitulace!A21","v":"Vytýčení stavby a podz. inženýrských sítí"},null,null,{"$f":"Rekapitulace!I21","v":0}]
["N","M dodávky celkem",{"$f":"Dodavka","v":0},{"$f":"Rekapitulace!A22","v":"Dokumentace skutečného provedení"},null,null,{"$f":"Rekapitulace!I22","v":0}]
["ZRN celkem",null,{"$f":"SUM(C15:C18)","v":0},{"$f":"Rekapitulace!A23","v":"DIO"},null,null,{"$f":"Rekapitulace!I23","v":0}]
[]
["HZS",null,{"$f":"HZS","v":0}]
["ZRN+HZS",null,{"$f":"C19+C21","v":0}]
["ZRN+ost.náklady+HZS",null,{"$f":"C22+G23","v":0},"Ostatní náklady celkem",null,null,{"$f":"VRN","v":0}]
["Vypracoval",null,null,"Za zhotovitele",null,"Za objednatele"]
["Jméno :",null,null,"Jméno :",null,"Jméno :"]
["Datum :",null,null,"Datum :",null,"Datum :"]
[]
["Podpis :",null,null,"Podpis:",null,"Podpis:"]
[]
["Základ pro DPH",null,21,"%  ",null,{"$f":"C23-F32","v":0}]
["DPH",null,{"$f":"SazbaDPH1","v":21},"% ",null,{"$f":"ROUND(PRODUCT(F30,C31/100),0)","v":0}]
["Základ pro DPH",null,0,"% ",null,0]
["DPH",null,{"$f":"SazbaDPH2","v":0},"% ",null,{"$f":"ROUND(PRODUCT(F32,C33/100),0)","v":0}]
["CENA ZA OBJEKT CELKEM",null,null,null,null,{"$f":"ROUND(SUM(F30:F33),0)","v":0}]
[]
["Poznámka :",null,null,null,null,null,null," "]
[null,null,null,null,null,null,null," "]
[null,null,null,null,null,null,null," "]
[null,null,null,null,null,null,null," "]
[null,null,null,null,null,null,null," "]
[null,null,null,null,null,null,null," "]
[null,null,null,null,null,null,null," "]
[null,null,null,null,null,null,null," "]
[null,null,null,null,null,null,null," "]
[null,null,null,null,null,null,null," "]

{"sheet":"Rekapitulace","index":1,"n_rows":24,"n_cols":53,"rows_kept":24,"cut":false,"hidden":false,"merged":[[0,0,0,1],[1,0,1,1],[1,6,1,8],[23,7,23,8]]}
["Stavba :",null,{"$f":"CONCATENATE(cislostavby,\" \",nazevstavby)","v":"3405 Turnov - Parkoviště \"Na Lukách\""},null,null,null,"Rozpočet :","3405/100"]
["Objekt :",null,{"$f":"CONCATENATE(cisloobjektu,\" \",nazevobjektu)","v":"100 Úpravy parkoviště"},null,null,null,"Úpravy parkoviště a dopravní značení"]
[]
["REKAPITULACE  STAVEBNÍCH  DÍLŮ"]
[]
[null,"Stavební díl",null,null,"HSV","PSV","Dodávka","Montáž","HZS"]
[{"$f":"Položky!B7","v":"1"},{"$f":"Položky!C7","v":"Zemní práce"},null,null,{"$f":"Položky!BA88","v":0},{"$f":"Položky!BB88","v":0},{"$f":"Položky!BC88","v":0},{"$f":"Položky!BD88","v":0},{"$f":"Položky!BE88","v":0}]
[{"$f":"Položky!B89","v":"5"},{"$f":"Položky!C89","v":"Komunikace"},null,null,{"$f":"Položky!BA127","v":0},{"$f":"Položky!BB127","v":0},{"$f":"Položky!BC127","v":0},{"$f":"Položky!BD127","v":0},{"$f":"Položky!BE127","v":0}]
[{"$f":"Položky!B128","v":"8"},{"$f":"Položky!C128","v":"Trubní vedení"},null,null,{"$f":"Položky!BA131","v":0},{"$f":"Položky!BB131","v":0},{"$f":"Položky!BC131","v":0},{"$f":"Položky!BD131","v":0},{"$f":"Položky!BE131","v":0}]
[{"$f":"Položky!B132","v":"91"},{"$f":"Položky!C132","v":"Doplňující práce na komunikaci"},null,null,{"$f":"Položky!BA161","v":0},{"$f":"Položky!BB161","v":0},{"$f":"Položky!BC161","v":0},{"$f":"Položky!BD161","v":0},{"$f":"Položky!BE161","v":0}]
[{"$f":"Položky!B162","v":"93"},{"$f":"Položky!C162","v":"Dokončovací práce inženýrských staveb"},null,null,{"$f":"Položky!BA168","v":0},{"$f":"Položky!BB168","v":0},{"$f":"Položky!BC168","v":0},{"$f":"Položky!BD168","v":0},{"$f":"Položky!BE168","v":0}]
[{"$f":"Položky!B169","v":"99"},{"$f":"Položky!C169","v":"Staveništní přesun hmot"},null,null,{"$f":"Položky!BA171","v":0},{"$f":"Položky!BB171","v":0},{"$f":"Položky!BC171","v":0},{"$f":"Položky!BD171","v":0},{"$f":"Položky!BE171","v":0}]
[{"$f":"Položky!B172","v":"M21"},{"$f":"Položky!C172","v":"Elektromontáže"},null,null,{"$f":"Položky!BA177","v":0},{"$f":"Položky!BB177","v":0},{"$f":"Položky!BC177","v":0},{"$f":"Položky!BD177","v":0},{"$f":"Položky!BE177","v":0}]
[null,"CELKEM  OBJEKT",null,null,{"$f":"SUM(E7:E13)","v":0},{"$f":"SUM(F7:F13)","v":0},{"$f":"SUM(G7:G13)","v":0},{"$f":"SUM(H7:H13)","v":0},{"$f":"SUM(I7:I13)","v":0}]
[]
["VEDLEJŠÍ ROZPOČTOVÉ  NÁKLADY"]
[]
["Název VRN",null,null,null,"Kč",null,null,null,"Kč"]
["Zařízení staveniště",null,null,null,0,null,null,null,{"$f":"E19+F19*G19/100","v":0},null,null,null,null,null,null,null,null,null,null,null,null,null,null,null,null,null,null,null,null,null,null,null,null,null,null,null,null,null,null,null,null,null,null,null,null,null,null,null,null,null,null,null,2]
["Kompletační činnost (IČD)",null,null,null,0,null,null,null,{"$f":"E20+F20*G20/100","v":0},null,null,null,null,null,null,null,null,null,null,null,null,null,null,null,null,null,null,null,null,null,null,null,null,null,null,null,null,null,null,null,null,null,null,null,null,null,null,null,null,null,null,null,2]
["Vytýčení stavby a podz. inženýrských sítí",null,null,null,0,null,null,null,{"$f":"E21+F21*G21/100","v":0},null,null,null,null,null,null,null,null,null,null,null,null,null,null,null,null,null,null,null,null,null,null,null,null,null,null,null,null,null,null,null,null,null,null,null,null,null,null,null,null,null,null,null,0]
["Dokumentace skutečného provedení",null,null,null,0,null,null,null,{"$f":"E22+F22*G22/100","v":0},null,null,null,null,null,null,null,null,null,null,null,null,null,null,null,null,null,null,null,null,null,null,null,null,null,null,null,null,null,null,null,null,null,null,null,null,null,null,null,null,null,null,null,0]
["DIO",null,null,null,0,null,null,null,{"$f":"E23+F23*G23/100","v":0},null,null,null,null,null,null,null,null,null,null,null,null,null,null,null,null,null,null,null,null,null,null,null,null,null,null,null,null,null,null,null,null,null,null,null,null,null,null,null,null,null,null,null,0]
[null,"CELKEM VRN",null,null,null,null,null,{"$f":"SUM(I19:I23)","v":0}]

{"sheet":"Položky","index":2,"n_rows":177,"n_cols":104,"rows_kept":177,"cut":false,"hidden":false,"merged":[[13,2,13,3],[14,2,14,3],[15,2,15,3],[17,2,17,3],[18,2,18,3],[20,2,20,3],[0,0,0,6],[2,0,2,1],[3,0,3,1],[3,4,3,6],[8,2,8,3],[9,2,9,3],[10,2,10,3],[12,2,12,3],[29,2,29,3],[31,2,31,6],[32,2,32,3],[34,2,34,3],[35,2,35,3],[36,2,36,3],[21,2,21,3],[23,2,23,3],[24,2,24,3],[25,2,25,3],[27,2,27,3],[28,2,28,3],[44,2,44,3],[45,2,45,3],[46,2,46,3],[48,2,48,3],[49,2,49,3],[50,2,50,3],[37,2,37,3],[38,2,38,3],[39,2,39,3],[41,2,41,3],[42,2,42,3],[43,2,43,3],[58,2,58,3],[59,2,59,3],[60,2,60,3],[62,2,62,6],[63,2,63,3],[64,2,64,3],[51,2,51,3],[52,2,52,3],[53,2,53,3],[55,2,55,3],[56,2,56,3],[57,2,57,3],[73,2,73,3],[74,2,74,3],[75,2,75,3],[77,2,77,3],[78,2,78,3],[79,2,79,3],[66,2,66,3],[67,2,67,3],[68,2,68,3],[69,2,69,3],[70,2,70,3],[71,2,71,3],[94,2,94,3],[96,2,96,3],[97,2,97,3],[98,2,98,3],[99,2,99,3],[101,2,101,3],[81,2,81,3],[83,2,83,3],[85,2,85,6],[86,2,86,3],[90,2,90,3],[91,2,91,3],[92,2,92,3],[93,2,93,3],[109,2,109,3],[111,2,111,3],[112,2,112,3],[113,2,113,3],[114,2,114,3],[116,2,116,3],[102,2,102,3],[103,2,103,3],[104,2,104,3],[106,2,106,3],[107,2,107,3],[108,2,108,3],[129,2,129,6],[133,2,133,6],[134,2,134,3],[135,2,135,3],[137,2,137,3],[138,2,138,3],[118,2,118,3],[120,2,120,6],[121,2,121,3],[122,2,122,3],[123,2,123,3],[125,2,125,3],[147,2,147,3],[148,2,148,3],[150,2,150,3],[152,2,152,3],[154,2,154,3],[155,2,155,3],[139,2,139,3],[141,2,141,3],[142,2,142,3],[144,2,144,3],[145,2,145,3],[173,2,173,6],[174,2,174,3],[175,2,175,3],[156,2,156,3],[158,2,158,3],[159,2,159,3],[163,2,163,6],[164,2,164,3],[166,2,166,3]]}
["Položkový rozpočet "]
[]
["Stavba :",null,{"$f":"CONCATENATE(cislostavby,\" \",nazevstavby)","v":"3405 Turnov - Parkoviště \"Na Lukách\""},null,"Rozpočet:",{"$f":"Rekapitulace!H1","v":"3405/100"}]
["Objekt :",null,{"$f":"CONCATENATE(cisloobjektu,\" \",nazevobjektu)","v":"100 Úpravy parkoviště"},null,{"$f":"Rekapitulace!G2","v":"Úpravy parkoviště a dopravní značení"}]
[]
["P.č.","Číslo položky","Název položky","MJ","množství","cena / MJ","celkem (Kč)"]
["Díl:","1","Zemní práce",null,null,null,null,null,null,null,null,null,null,null,1]
[1,"113105113R00","Rozebrání dlažeb - přídlažby do MC, spáry s MC včetně podkladního lože","m2",131.1,null,{"$f":"E8*F8","v":0},null,null,null,null,null,null,null,2,null,null,null,null,null,null,null,null,null,null,null,1,1,1,null,null,null,null,null,null,null,null,null,null,null,null,null,null,null,null,null,null,null,null,null,null,1,{"$f":"IF(AZ8=1,G8,0)","v":0},{"$f":"IF(AZ8=2,G8,0)","v":0},{"$f":"IF(AZ8=3,G8,0)","v":0},{"$f":"IF(AZ8=4,G8,0)","v":0},{"$f":"IF(AZ8=5,G8,0)","v":0},null,null,null,null,null,null,null,null,null,null,null,null,null,null,null,null,null,null,null,null,null,1,1,null,null,null,null,null,null,null,null,null,null,null,null,null,null,null,null,null,null,null,null,null,null,null,0]
[null,null,"Plocha č.1 - Stávající přídlažba:(95,20+3,60)*2*0,30",null,59.28,null,null,null,null,null,null,null,"Plocha č.1 - Stávající přídlažba:(95,20+3,60)*2*0,30"]
[null,null,"Plocha č.2 - Stávající přídlažba:(88,00+3,60)*2*0,30",null,54.96,null,null,null,null,null,null,null,"Plocha č.2 - Stávající přídlažba:(88,00+3,60)*2*0,30"]
[null,null,"Podél zeleného ostrůvku - Stávající přídlažba:56,20*0,30",null,16.86,null,null,null,null,null,null,null,"Podél zeleného ostrůvku - Stávající přídlažba:56,20*0,30"]
[2,"113107615R00","Odstranění podkladu nad 50 m2,kam.drcené tl.15 cm ","m2",783.55,null,{"$f":"E12*F12","v":0},null,null,null,null,null,null,null,2,null,null,null,null,null,null,null,null,null,null,null,1,1,1,null,null,null,null,null,null,null,null,null,null,null,null,null,null,null,null,null,null,null,null,null,null,1,{"$f":"IF(AZ12=1,G12,0)","v":0},{"$f":"IF(AZ12=2,G12,0)","v":0},{"$f":"IF(AZ12=3,G12,0)","v":0},{"$f":"IF(AZ12=4,G12,0)","v":0},{"$f":"IF(AZ12=5,G12,0)","v":0},null,null,null,null,null,null,null,null,null,null,null,null,null,null,null,null,null,null,null,null,null,1,1,null,null,null,null,null,null,null,null,null,null,null,null,null,null,null,null,null,null,null,null,null,null,null,0]
[null,null,"Plochy pod asfalty, přídlažbou a ostrůvky od úrovně -0,15 m:",null,0,null,null,null,null,null,null,null,"Plochy pod asfalty, přídlažbou a ostrůvky od úrovně -0,15 m:"]
[null,null,"Plocha č.1 - Plocha :96,20*4,00",null,384.8,null,null,null,null,null,null,null,"Plocha č.1 - Plocha :96,20*4,00"]
[null,null,"Plocha č.2 - Plocha:89,00*4,00",null,356,null,null,null,null,null,null,null,"Plocha č.2 - Plocha:89,00*4,00"]
[null,null,"Podél zeleného ostrůvku - Plocha:57,00*0,75",null,42.75,null,null,null,null,null,null,null,"Podél zeleného ostrůvku - Plocha:57,00*0,75"]
[3,"113107620R00","Odstranění podkladu nad 50 m2,kam.drcené tl.20 cm ","m2",493.02,null,{"$f":"E17*F17","v":0},null,null,null,null,null,null,null,2,null,null,null,null,null,null,null,null,null,null,null,1,1,1,null,null,null,null,null,null,null,null,null,null,null,null,null,null,null,null,null,null,null,null,null,null,1,{"$f":"IF(AZ17=1,G17,0)","v":0},{"$f":"IF(AZ17=2,G17,0)","v":0},{"$f":"IF(AZ17=3,G17,0)","v":0},{"$f":"IF(AZ17=4,G17,0)","v":0},{"$f":"IF(AZ17=5,G17,0)","v":0},null,null,null,null,null,null,null,null,null,null,null,null,null,null,null,null,null,null,null,null,null,1,1,null,null,null,null,null,null,null,null,null,null,null,null,null,null,null,null,null,null,null,null,null,null,null,0]
[null,null,"Plocha č.1 - Asfaltová plocha ostrůvků po úroveň ŠD komunikace:94,90*2,70",null,256.23,null,null,null,null,null,null,null,"Plocha č.1 - Asfaltová plocha ostrůvků po úroveň ŠD komunikace:94,90*2,70"]
[null,null,"Plocha č.2 - Asfaltová plocha ostrůvků po úroveň ŠD komunikace:87,70*2,70",null,236.79,null,null,null,null,null,null,null,"Plocha č.2 - Asfaltová plocha ostrůvků po úroveň ŠD komunikace:87,70*2,70"]
[4,"113108406R00","Odstranění podkladu pl. nad 50 m2, živice tl.6 cm ","m2",493.02,null,{"$f":"E20*F20","v":0},null,null,null,null,null,null,null,2,null,null,null,null,null,null,null,null,null,null,null,1,1,1,null,null,null,null,null,null,null,null,null,null,null,null,null,null,null,null,null,null,null,null,null,null,1,{"$f":"IF(AZ20=1,G20,0)","v":0},{"$f":"IF(AZ20=2,G20,0)","v":0},{"$f":"IF(AZ20=3,G20,0)","v":0},{"$f":"IF(AZ20=4,G20,0)","v":0},{"$f":"IF(AZ20=5,G20,0)","v":0},null,null,null,null,null,null,null,null,null,null,null,null,null,null,null,null,null,null,null,null,null,1,1,null,null,null,null,null,null,null,null,null,null,null,null,null,null,null,null,null,null,null,null,null,null,null,0]
[null,null,"Plocha č.1 - Asfaltová plocha ostrůvků:94,90*2,70",null,256.23,null,null,null,null,null,null,null,"Plocha č.1 - Asfaltová plocha ostrůvků:94,90*2,70"]
[null,null,"Plocha č.2 - Asfaltová plocha ostrůvků:87,70*2,70",null,236.79,null,null,null,null,null,null,null,"Plocha č.2 - Asfaltová plocha ostrůvků:87,70*2,70"]
[5,"113108415R00","Odstranění asfaltové vrstvy pl.nad 50 m2, tl.15 cm ","m2",88.36,null,{"$f":"E23*F23","v":0},null,null,null,null,null,null,null,2,null,null,null,null,null,null,null,null,null,null,null,1,1,1,null,null,null,null,null,null,null,null,null,null,null,null,null,null,null,null,null,null,null,null,null,null,1,{"$f":"IF(AZ23=1,G23,0)","v":0},{"$f":"IF(AZ23=2,G23,0)","v":0},{"$f":"IF(AZ23=3,G23,0)","v":0},{"$f":"IF(AZ23=4,G23,0)","v":0},{"$f":"IF(AZ23=5,G23,0)","v":0},null,null,null,null,null,null,null,null,null,null,null,null,null,null,null,null,null,null,null,null,null,1,1,null,null,null,null,null,null,null,null,null,null,null,null,null,null,null,null,null,null,null,null,null,null,null,0]
[null,null,"Plocha č.1 - Plocha podél stávající přídlažby:96,20*4,00-95,80*3,60",null,39.92,null,null,null,null,null,null,null,"Plocha č.1 - Plocha podél stávající přídlažby:96,20*4,00-95,80*3,60"]
[null,null,"Plocha č.2 - Plocha podél stávající přídlažby:89,00*4,00-88,60*3,60",null,37.04,null,null,null,null,null,null,null,"Plocha č.2 - Plocha podél stávající přídlažby:89,00*4,00-88,60*3,60"]
[null,null,"Podél zeleného ostrůvku - Stávající přídlažba:57,00*0,20",null,11.4,null,null,null,null,null,null,null,"Podél zeleného ostrůvku - Stávající přídlažba:57,00*0,20"]
[6,"113201111R00","Vytrhání obrubníků chodníkových a parkových ","m",435,null,{"$f":"E27*F27","v":0},null,null,null,null,null,null,null,2,null,null,null,null,null,null,null,null,null,null,null,1,1,1,null,null,null,null,null,null,null,null,null,null,null,null,null,null,null,null,null,null,null,null,null,null,1,{"$f":"IF(AZ27=1,G27,0)","v":0},{"$f":"IF(AZ27=2,G27,0)","v":0},{"$f":"IF(AZ27=3,G27,0)","v":0},{"$f":"IF(AZ27=4,G27,0)","v":0},{"$f":"IF(AZ27=5,G27,0)","v":0},null,null,null,null,null,null,null,null,null,null,null,null,null,null,null,null,null,null,null,null,null,1,1,null,null,null,null,null,null,null,null,null,null,null,null,null,null,null,null,null,null,null,null,null,null,null,0]
[null,null,"Plocha č.1 - Stávající obrubníky:(95,00+3,00)*2",null,196,null,null,null,null,null,null,null,"Plocha č.1 - Stávající obrubníky:(95,00+3,00)*2"]
[null,null,"Plocha č.2 - Stávající obrubníky:(88,00+3,00)*2",null,182,null,null,null,null,null,null,null,"Plocha č.2 - Stávající obrubníky:(88,00+3,00)*2"]
[null,null,"Podél zeleného ostrůvku - Stávající přídlažba:57,00",null,57,null,null,null,null,null,null,null,"Podél zeleného ostrůvku - Stávající přídlažba:57,00"]
[7,"121101102R00","Sejmutí ornice s přemístěním přes 50 do 100 m ","m3",5.3025000000000002,null,{"$f":"E31*F31","v":0},null,null,null,null,null,null,null,2,null,null,null,null,null,null,null,null,null,null,null,1,1,1,null,null,null,null,null,null,null,null,null,null,null,null,null,null,null,null,null,null,null,null,null,null,1,{"$f":"IF(AZ31=1,G31,0)","v":0},{"$f":"IF(AZ31=2,G31,0)","v":0},{"$f":"IF(AZ31=3,G31,0)","v":0},{"$f":"IF(AZ31=4,G31,0)","v":0},{"$f":"IF(AZ31=5,G31,0)","v":0},null,null,null,null,null,null,null,null,null,null,null,null,null,null,null,null,null,null,null,null,null,1,1,null,null,null,null,null,null,null,null,null,null,null,null,null,null,null,null,null,null,null,null,null,null,null,0]
[null,null,"Pro opěrovné použití na stavbě",null,null,null,null,null,null,null,null,"Pro opěrovné použití na stavbě",null,null,3]
[null,null,"Plocha u spojovacího chodníku:10,10*3,50*0,15",null,5.3025000000000002,null,null,null,null,null,null,null,"Plocha u spojovacího chodníku:10,10*3,50*0,15"]
[8,"122202201R00","Odkopávky pro silnice v hor. 3 do 100 m3 ","m3",117.6585,null,{"$f":"E34*F34","v":0},null,null,null,null,null,null,null,2,null,null,null,null,null,null,null,null,null,null,null,1,1,1,null,null,null,null,null,null,null,null,null,null,null,null,null,null,null,null,null,null,null,null,null,null,1,{"$f":"IF(AZ34=1,G34,0)","v":0},{"$f":"IF(AZ34=2,G34,0)","v":0},{"$f":"IF(AZ34=3,G34,0)","v":0},{"$f":"IF(AZ34=4,G34,0)","v":0},{"$f":"IF(AZ34=5,G34,0)","v":0},null,null,null,null,null,null,null,null,null,null,null,null,null,null,null,null,null,null,null,null,null,1,1,null,null,null,null,null,null,null,null,null,null,null,null,null,null,null,null,null,null,null,null,null,null,null,0]
[null,null,"Plochy pod asfalty, přídlažbou a ostrůvky od úrovně -0,30 m:",null,0,null,null,null,null,null,null,null,"Plochy pod asfalty, přídlažbou a ostrůvky od úrovně -0,30 m:"]
[null,null,"Plocha č.1 - Plocha :96,20*4,00*0,10",null,38.479999999999997,null,null,null,null,null,null,null,"Plocha č.1 - Plocha :96,20*4,00*0,10"]
[null,null,"Plocha č.2 - Plocha:89,00*4,00*0,10",null,35.6,null,null,null,null,null,null,null,"Plocha č.2 - Plocha:89,00*4,00*0,10"]
[null,null,"Podél zeleného ostrůvku - Plocha:57,00*0,75*0,10",null,4.2750000000000004,null,null,null,null,null,null,null,"Podél zeleného ostrůvku - Plocha:57,00*0,75*0,10"]
[null,null,"Stávající část ostrůvku:56,20*1,10*(0,15+0,40)",null,34.000999999999998,null,null,null,null,null,null,null,"Stávající část ostrůvku:56,20*1,10*(0,15+0,40)"]
[null,null,"Plocha u spojovacího chodníku:10,10*3,50*0,15",null,5.3025000000000002,null,null,null,null,null,null,null,"Plocha u spojovacího chodníku:10,10*3,50*0,15"]
[9,"122202209R00","Příplatek za lepivost - odkop. pro silnice v hor.3 ","m3",117.6585,null,{"$f":"E41*F41","v":0},null,null,null,null,null,null,null,2,null,null,null,null,null,null,null,null,null,null,null,1,1,1,null,null,null,null,null,null,null,null,null,null,null,null,null,null,null,null,null,null,null,null,null,null,1,{"$f":"IF(AZ41=1,G41,0)","v":0},{"$f":"IF(AZ41=2,G41,0)","v":0},{"$f":"IF(AZ41=3,G41,0)","v":0},{"$f":"IF(AZ41=4,G41,0)","v":0},{"$f":"IF(AZ41=5,G41,0)","v":0},null,null,null,null,null,null,null,null,null,null,null,null,null,null,null,null,null,null,null,null,null,1,1,null,null,null,null,null,null,null,null,null,null,null,null,null,null,null,null,null,null,null,null,null,null,null,0]
[null,null,"Plochy pod asfalty, přídlažbou a ostrůvky od úrovně -0,30 m:",null,0,null,null,null,null,null,null,null,"Plochy pod asfalty, přídlažbou a ostrůvky od úrovně -0,30 m:"]
[null,null,"Plocha č.1 - Plocha :96,20*4,00*0,10",null,38.479999999999997,null,null,null,null,null,null,null,"Plocha č.1 - Plocha :96,20*4,00*0,10"]
[null,null,"Plocha č.2 - Plocha:89,00*4,00*0,10",null,35.6,null,null,null,null,null,null,null,"Plocha č.2 - Plocha:89,00*4,00*0,10"]
[null,null,"Podél zeleného ostrůvku - Plocha:57,00*0,75*0,10",null,4.2750000000000004,null,null,null,null,null,null,null,"Podél zeleného ostrůvku - Plocha:57,00*0,75*0,10"]
[null,null,"Stávající část ostrůvku:56,20*1,10*(0,15+0,40)",null,34.000999999999998,null,null,null,null,null,null,null,"Stávající část ostrůvku:56,20*1,10*(0,15+0,40)"]
[null,null,"Plocha u spojovacího chodníku:10,10*3,50*0,15",null,5.3025000000000002,null,null,null,null,null,null,null,"Plocha u spojovacího chodníku:10,10*3,50*0,15"]
[10,"162701105RSZ","Vodorovné přemístění výkopku z hor.1-4 na skládku zhotovitele","m3",117.6585,null,{"$f":"E48*F48","v":0},null,null,null,null,null,null,null,2,null,null,null,null,null,null,null,null,null,null,null,1,1,1,null,null,null,null,null,null,null,null,null,null,null,null,null,null,null,null,null,null,null,null,null,null,1,{"$f":"IF(AZ48=1,G48,0)","v":0},{"$f":"IF(AZ48=2,G48,0)","v":0},{"$f":"IF(AZ48=3,G48,0)","v":0},{"$f":"IF(AZ48=4,G48,0)","v":0},{"$f":"IF(AZ48=5,G48,0)","v":0},null,null,null,null,null,null,null,null,null,null,null,null,null,null,null,null,null,null,null,null,null,1,1,null,null,null,null,null,null,null,null,null,null,null,null,null,null,null,null,null,null,null,null,null,null,null,0]
[null,null,"Plochy pod asfalty, přídlažbou a ostrůvky od úrovně -0,30 m:",null,0,null,null,null,null,null,null,null,"Plochy pod asfalty, přídlažbou a ostrůvky od úrovně -0,30 m:"]
[null,null,"Plocha č.1 - Plocha :96,20*4,00*0,10",null,38.479999999999997,null,null,null,null,null,null,null,"Plocha č.1 - Plocha :96,20*4,00*0,10"]
[null,null,"Plocha č.2 - Plocha:89,00*4,00*0,10",null,35.6,null,null,null,null,null,null,null,"Plocha č.2 - Plocha:89,00*4,00*0,10"]
[null,null,"Podél zeleného ostrůvku - Plocha:57,00*0,75*0,10",null,4.2750000000000004,null,null,null,null,null,null,null,"Podél zeleného ostrůvku - Plocha:57,00*0,75*0,10"]
[null,null,"Stávající část ostrůvku:56,20*1,10*(0,15+0,40)",null,34.000999999999998,null,null,null,null,null,null,null,"Stávající část ostrůvku:56,20*1,10*(0,15+0,40)"]
[null,null,"Plocha u spojovacího chodníku:10,10*3,50*0,15",null,5.3025000000000002,null,null,null,null,null,null,null,"Plocha u spojovacího chodníku:10,10*3,50*0,15"]
[11,"181101102R00","Úprava pláně v zářezech v hor. 1-4, se zhutněním ","m2",880.72,null,{"$f":"E55*F55","v":0},null,null,null,null,null,null,null,2,null,null,null,null,null,null,null,null,null,null,null,1,1,1,null,null,null,null,null,null,null,null,null,null,null,null,null,null,null,null,null,null,null,null,null,null,1,{"$f":"IF(AZ55=1,G55,0)","v":0},{"$f":"IF(AZ55=2,G55,0)","v":0},{"$f":"IF(AZ55=3,G55,0)","v":0},{"$f":"IF(AZ55=4,G55,0)","v":0},{"$f":"IF(AZ55=5,G55,0)","v":0},null,null,null,null,null,null,null,null,null,null,null,null,null,null,null,null,null,null,null,null,null,1,1,null,null,null,null,null,null,null,null,null,null,null,null,null,null,null,null,null,null,null,null,null,null,null,0]
[null,null,"Plochy pod asfalty, přídlažbou a ostrůvky od úrovně -0,30 m:",null,0,null,null,null,null,null,null,null,"Plochy pod asfalty, přídlažbou a ostrůvky od úrovně -0,30 m:"]
[null,null,"Plocha č.1 - Plocha :96,20*4,00",null,384.8,null,null,null,null,null,null,null,"Plocha č.1 - Plocha :96,20*4,00"]
[null,null,"Plocha č.2 - Plocha:89,00*4,00",null,356,null,null,null,null,null,null,null,"Plocha č.2 - Plocha:89,00*4,00"]
[null,null,"Podél zeleného ostrůvku - Plocha:57,00*0,75",null,42.75,null,null,null,null,null,null,null,"Podél zeleného ostrůvku - Plocha:57,00*0,75"]
[null,null,"Stávající část ostrůvku:56,20*1,10",null,61.82,null,null,null,null,null,null,null,"Stávající část ostrůvku:56,20*1,10"]
[null,null,"Plocha u spojovacího chodníku:10,10*3,50",null,35.35,null,null,null,null,null,null,null,"Plocha u spojovacího chodníku:10,10*3,50"]
[12,"181300010RAA","Rozprostření ornice v rovině tloušťka 15 cm dovoz ornice ze vzdálenosti 500 m, osetí trávou","m2",38.6,null,{"$f":"E62*F62","v":0},null,null,null,null,null,null,null,2,null,null,null,null,null,null,null,null,null,null,null,1,1,1,null,null,null,null,null,null,null,null,null,null,null,null,null,null,null,null,null,null,null,null,null,null,1,{"$f":"IF(AZ62=1,G62,0)","v":0},{"$f":"IF(AZ62=2,G62,0)","v":0},{"$f":"IF(AZ62=3,G62,0)","v":0},{"$f":"IF(AZ62=4,G62,0)","v":0},{"$f":"IF(AZ62=5,G62,0)","v":0},null,null,null,null,null,null,null,null,null,null,null,null,null,null,null,null,null,null,null,null,null,1,1,null,null,null,null,null,null,null,null,null,null,null,null,null,null,null,null,null,null,null,null,null,null,null,3.0000000000000001E-5]
[null,null,"Včetně přesunu hmot.",null,null,null,null,null,null,null,null,"Včetně přesunu hmot.",null,null,3]
[null,null,"Podél zeleného ostrůvku - Plocha:57,00*0,50",null,28.5,null,null,null,null,null,null,null,"Podél zeleného ostrůvku - Plocha:57,00*0,50"]
[null,null,"Plocha u spojovacího chodníku:10,10*0,50*2",null,10.1,null,null,null,null,null,null,null,"Plocha u spojovacího chodníku:10,10*0,50*2"]
[13,"199000002R00","Poplatek za skládku horniny 1- 4 č. dle katal. odpadů 17 05 04","m3",117.6585,null,{"$f":"E66*F66","v":0},null,null,null,null,null,null,null,2,null,null,null,null,null,null,null,null,null,null,null,1,1,1,null,null,null,null,null,null,null,null,null,null,null,null,null,null,null,null,null,null,null,null,null,null,1,{"$f":"IF(AZ66=1,G66,0)","v":0},{"$f":"IF(AZ66=2,G66,0)","v":0},{"$f":"IF(AZ66=3,G66,0)","v":0},{"$f":"IF(AZ66=4,G66,0)","v":0},{"$f":"IF(AZ66=5,G66,0)","v":0},null,null,null,null,null,null,null,null,null,null,null,null,null,null,null,null,null,null,null,null,null,1,1,null,null,null,null,null,null,null,null,null,null,null,null,null,null,null,null,null,null,null,null,null,null,null,0]
[null,null,"Plochy pod asfalty, přídlažbou a ostrůvky od úrovně -0,30 m:",null,0,null,null,null,null,null,null,null,"Plochy pod asfalty, přídlažbou a ostrůvky od úrovně -0,30 m:"]
[null,null,"Plocha č.1 - Plocha :96,20*4,00*0,10",null,38.479999999999997,null,null,null,null,null,null,null,"Plocha č.1 - Plocha :96,20*4,00*0,10"]
[null,null,"Plocha č.2 - Plocha:89,00*4,00*0,10",null,35.6,null,null,null,null,null,null,null,"Plocha č.2 - Plocha:89,00*4,00*0,10"]
[null,null,"Podél zeleného ostrůvku - Plocha:57,00*0,75*0,10",null,4.2750000000000004,null,null,null,null,null,null,null,"Podél zeleného ostrůvku - Plocha:57,00*0,75*0,10"]
[null,null,"Stávající část ostrůvku:56,20*1,10*(0,15+0,40)",null,34.000999999999998,null,null,null,null,null,null,null,"Stávající část ostrůvku:56,20*1,10*(0,15+0,40)"]
[null,null,"Plocha u spojovacího chodníku:10,10*3,50*0,15",null,5.3025000000000002,null,null,null,null,null,null,null,"Plocha u spojovacího chodníku:10,10*3,50*0,15"]
[14,"919735113R00","Řezání stávajícího živičného krytu tl. 10 - 15 cm ","m",446.4,null,{"$f":"E73*F73","v":0},null,null,null,null,null,null,null,2,null,null,null,null,null,null,null,null,null,null,null,1,1,1,null,null,null,null,null,null,null,null,null,null,null,null,null,null,null,null,null,null,null,null,null,null,1,{"$f":"IF(AZ73=1,G73,0)","v":0},{"$f":"IF(AZ73=2,G73,0)","v":0},{"$f":"IF(AZ73=3,G73,0)","v":0},{"$f":"IF(AZ73=4,G73,0)","v":0},{"$f":"IF(AZ73=5,G73,0)","v":0},null,null,null,null,null,null,null,null,null,null,null,null,null,null,null,null,null,null,null,null,null,1,1,null,null,null,null,null,null,null,null,null,null,null,null,null,null,null,null,null,null,null,null,null,null,null,0]
[null,null,"Plocha č.1 - Plocha podél stávající přídlažby:(96,20+4,00)*2",null,200.4,null,null,null,null,null,null,null,"Plocha č.1 - Plocha podél stávající přídlažby:(96,20+4,00)*2"]
[null,null,"Plocha č.2 - Plocha podél stávající přídlažby:(89,00+4,00)*2",null,186,null,null,null,null,null,null,null,"Plocha č.2 - Plocha podél stávající přídlažby:(89,00+4,00)*2"]
[null,null,"Podél zeleného ostrůvku - Stávající přídlažba:60,00",null,60,null,null,null,null,null,null,null,"Podél zeleného ostrůvku - Stávající přídlažba:60,00"]
[15,"979082113RSZ","Vodorovná doprava suti po suchu na skládku zhotovitele","t",742.20320000000004,null,{"$f":"E77*F77","v":0},null,null,null,null,null,null,null,2,null,null,null,null,null,null,null,null,null,null,null,1,1,1,null,null,null,null,null,null,null,null,null,null,null,null,null,null,null,null,null,null,null,null,null,null,1,{"$f":"IF(AZ77=1,G77,0)","v":0},{"$f":"IF(AZ77=2,G77,0)","v":0},{"$f":"IF(AZ77=3,G77,0)","v":0},{"$f":"IF(AZ77=4,G77,0)","v":0},{"$f":"IF(AZ77=5,G77,0)","v":0},null,null,null,null,null,null,null,null,null,null,null,null,null,null,null,null,null,null,null,null,null,1,1,null,null,null,null,null,null,null,null,null,null,null,null,null,null,null,null,null,null,null,null,null,null,null,0]
[null,null,"Štěrky:258,5715+216,9283",null,475.49979999999999,null,null,null,null,null,null,null,"Štěrky:258,5715+216,9283"]
[null,null,"Asfalty:65,0786+29,1588",null,94.237399999999994,null,null,null,null,null,null,null,"Asfalty:65,0786+29,1588"]
[null,null,"Betony:76,7660+95,7000",null,172.46600000000001,null,null,null,null,null,null,null,"Betony:76,7660+95,7000"]
[16,"979089001R00","Poplatek za skládku stavební suti štěrky z komunikací, skupina odpadu 010408","t",475.49979999999999,null,{"$f":"E81*F81","v":0},null,null,null,null,null,null,null,2,null,null,null,null,null,null,null,null,null,null,null,1,1,1,null,null,null,null,null,null,null,null,null,null,null,null,null,null,null,null,null,null,null,null,null,null,1,{"$f":"IF(AZ81=1,G81,0)","v":0},{"$f":"IF(AZ81=2,G81,0)","v":0},{"$f":"IF(AZ81=3,G81,0)","v":0},{"$f":"IF(AZ81=4,G81,0)","v":0},{"$f":"IF(AZ81=5,G81,0)","v":0},null,null,null,null,null,null,null,null,null,null,null,null,null,null,null,null,null,null,null,null,null,1,1,null,null,null,null,null,null,null,null,null,null,null,null,null,null,null,null,null,null,null,null,null,null,null,0]
[null,null,"Štěrky:258,5715+216,9283",null,475.49979999999999,null,null,null,null,null,null,null,"Štěrky:258,5715+216,9283"]
[17,"979990103R00","Poplatek za skládku stavební suti beton  skupina odpadu 170101","t",172.46600000000001,null,{"$f":"E83*F83","v":0},null,null,null,null,null,null,null,2,null,null,null,null,null,null,null,null,null,null,null,1,1,1,null,null,null,null,null,null,null,null,null,null,null,null,null,null,null,null,null,null,null,null,null,null,1,{"$f":"IF(AZ83=1,G83,0)","v":0},{"$f":"IF(AZ83=2,G83,0)","v":0},{"$f":"IF(AZ83=3,G83,0)","v":0},{"$f":"IF(AZ83=4,G83,0)","v":0},{"$f":"IF(AZ83=5,G83,0)","v":0},null,null,null,null,null,null,null,null,null,null,null,null,null,null,null,null,null,null,null,null,null,1,1,null,null,null,null,null,null,null,null,null,null,null,null,null,null,null,null,null,null,null,null,null,null,null,0]
[null,null,"Betony:76,7660+95,7000",null,172.46600000000001,null,null,null,null,null,null,null,"Betony:76,7660+95,7000"]
[18,"979999995R00","Poplatek za reciklaci asfaltu, kusovost do 1600cm2 skupina 170302","t",94.237399999999994,null,{"$f":"E85*F85","v":0},null,null,null,null,null,null,null,2,null,null,null,null,null,null,null,null,null,null,null,1,1,1,null,null,null,null,null,null,null,null,null,null,null,null,null,null,null,null,null,null,null,null,null,null,1,{"$f":"IF(AZ85=1,G85,0)","v":0},{"$f":"IF(AZ85=2,G85,0)","v":0},{"$f":"IF(AZ85=3,G85,0)","v":0},{"$f":"IF(AZ85=4,G85,0)","v":0},{"$f":"IF(AZ85=5,G85,0)","v":0},null,null,null,null,null,null,null,null,null,null,null,null,null,null,null,null,null,null,null,null,null,1,1,null,null,null,null,null,null,null,null,null,null,null,null,null,null,null,null,null,null,null,null,null,null,null,0]
[null,null,"Položka je určena pro suť o velikosti kusu do 30x30 cm (technologický materiál určený k recyklaci).",null,null,null,null,null,null,null,null,"Položka je určena pro suť o velikosti kusu do 30x30 cm (technologický materiál určený k recyklaci).",null,null,3]
[null,null,"Asfalty:65,0786+29,1588",null,94.237399999999994,null,null,null,null,null,null,null,"Asfalty:65,0786+29,1588"]
[null,"Celkem za",{"$f":"CONCATENATE(B7,\" \",C7)","v":"1 Zemní práce"},null,null,null,{"$f":"SUM(G7:G87)","v":0},null,null,null,null,null,null,null,4,null,null,null,null,null,null,null,null,null,null,null,null,null,null,null,null,null,null,null,null,null,null,null,null,null,null,null,null,null,null,null,null,null,null,null,null,null,{"$f":"SUM(BA7:BA87)","v":0},{"$f":"SUM(BB7:BB87)","v":0},{"$f":"SUM(BC7:BC87)","v":0},{"$f":"SUM(BD7:BD87)","v":0},{"$f":"SUM(BE7:BE87)","v":0}]
["Díl:","5","Komunikace",null,null,null,null,null,null,null,null,null,null,null,1]
[19,"564851111R00","Podklad ze štěrkodrti po zhutnění tloušťky 15 cm ","m2",1876.27,null,{"$f":"E90*F90","v":0},null,null,null,null,null,null,null,2,null,null,null,null,null,null,null,null,null,null,null,1,1,1,null,null,null,null,null,null,null,null,null,null,null,null,null,null,null,null,null,null,null,null,null,null,1,{"$f":"IF(AZ90=1,G90,0)","v":0},{"$f":"IF(AZ90=2,G90,0)","v":0},{"$f":"IF(AZ90=3,G90,0)","v":0},{"$f":"IF(AZ90=4,G90,0)","v":0},{"$f":"IF(AZ90=5,G90,0)","v":0},null,null,null,null,null,null,null,null,null,null,null,null,null,null,null,null,null,null,null,null,null,1,1,null,null,null,null,null,null,null,null,null,null,null,null,null,null,null,null,null,null,null,null,null,null,null,0.378]
[null,null,"Plochy nových asfaltových ploch + Rezerva 10%:",null,0,null,null,null,null,null,null,null,"Plochy nových asfaltových ploch + Rezerva 10%:"]
[null,null,"Plocha č.1 - Plocha :96,20*4,00*2*1,1",null,846.56,null,null,null,null,null,null,null,"Plocha č.1 - Plocha :96,20*4,00*2*1,1"]
[null,null,"Plocha č.2 - Plocha:89,00*4,00*2*1,1",null,783.2,null,null,null,null,null,null,null,"Plocha č.2 - Plocha:89,00*4,00*2*1,1"]
[null,null,"Podél zeleného ostrůvku - Plocha:57,00*1,60*1,1+57,00*1,80*1,1",null,213.18,null,null,null,null,null,null,null,"Podél zeleného ostrůvku - Plocha:57,00*1,60*1,1+57,00*1,80*1,1"]
[null,null,"Plocha u spojovacího chodníku:10,10*3,00*1,1",null,33.33,null,null,null,null,null,null,null,"Plocha u spojovacího chodníku:10,10*3,00*1,1"]
[20,"565131111RT2","Podklad z obal kamen. ACP 16+, š. do 3 m, tl. 5 cm plochy 201-1000 m2","m2",915.2,null,{"$f":"E96*F96","v":0},null,null,null,null,null,null,null,2,null,null,null,null,null,null,null,null,null,null,null,1,1,1,null,null,null,null,null,null,null,null,null,null,null,null,null,null,null,null,null,null,null,null,null,null,1,{"$f":"IF(AZ96=1,G96,0)","v":0},{"$f":"IF(AZ96=2,G96,0)","v":0},{"$f":"IF(AZ96=3,G96,0)","v":0},{"$f":"IF(AZ96=4,G96,0)","v":0},{"$f":"IF(AZ96=5,G96,0)","v":0},null,null,null,null,null,null,null,null,null,null,null,null,null,null,null,null,null,null,null,null,null,1,1,null,null,null,null,null,null,null,null,null,null,null,null,null,null,null,null,null,null,null,null,null,null,null,0.13188]
[null,null,"Plochy nových asfaltových ploch + Rezerva 10%:",null,0,null,null,null,null,null,null,null,"Plochy nových asfaltových ploch + Rezerva 10%:"]
[null,null,"Plocha č.1 - Plocha :96,20*4,00*1,1",null,423.28,null,null,null,null,null,null,null,"Plocha č.1 - Plocha :96,20*4,00*1,1"]
[null,null,"Plocha č.2 - Plocha:89,00*4,00*1,1",null,391.6,null,null,null,null,null,null,null,"Plocha č.2 - Plocha:89,00*4,00*1,1"]
[null,null,"Podél zeleného ostrůvku - Plocha:57,00*1,60*1,1",null,100.32,null,null,null,null,null,null,null,"Podél zeleného ostrůvku - Plocha:57,00*1,60*1,1"]
[21,"573111124R00","Postřik infiltrační, množství zbytkového asfaltového pojiva 1,00 kg/m2","m2",915.2,null,{"$f":"E101*F101","v":0},null,null,null,null,null,null,null,2,null,null,null,null,null,null,null,null,null,null,null,1,0,0,null,null,null,null,null,null,null,null,null,null,null,null,null,null,null,null,null,null,null,null,null,null,1,{"$f":"IF(AZ101=1,G101,0)","v":0},{"$f":"IF(AZ101=2,G101,0)","v":0},{"$f":"IF(AZ101=3,G101,0)","v":0},{"$f":"IF(AZ101=4,G101,0)","v":0},{"$f":"IF(AZ101=5,G101,0)","v":0},null,null,null,null,null,null,null,null,null,null,null,null,null,null,null,null,null,null,null,null,null,1,0,null,null,null,null,null,null,null,null,null,null,null,null,null,null,null,null,null,null,null,null,null,null,null,6.0099999999999997E-3]
[null,null,"Plochy nových asfaltových ploch + Rezerva 10%:",null,0,null,null,null,null,null,null,null,"Plochy nových asfaltových ploch + Rezerva 10%:"]
[null,null,"Plocha č.1 - Plocha :96,20*4,00*1,1",null,423.28,null,null,null,null,null,null,null,"Plocha č.1 - Plocha :96,20*4,00*1,1"]
[null,null,"Plocha č.2 - Plocha:89,00*4,00*1,1",null,391.6,null,null,null,null,null,null,null,"Plocha č.2 - Plocha:89,00*4,00*1,1"]
[null,null,"Podél zeleného ostrůvku - Plocha:57,00*1,60*1,1",null,100.32,null,null,null,null,null,null,null,"Podél zeleného ostrůvku - Plocha:57,00*1,60*1,1"]
[22,"573231110R00","Postřik spojovací z KAE množství zbytkového asfaltu 0,3 kg/m2","m2",915.2,null,{"$f":"E106*F106","v":0},null,null,null,null,null,null,null,2,null,null,null,null,null,null,null,null,null,null,null,1,1,1,null,null,null,null,null,null,null,null,null,null,null,null,null,null,null,null,null,null,null,null,null,null,1,{"$f":"IF(AZ106=1,G106,0)","v":0},{"$f":"IF(AZ106=2,G106,0)","v":0},{"$f":"IF(AZ106=3,G106,0)","v":0},{"$f":"IF(AZ106=4,G106,0)","v":0},{"$f":"IF(AZ106=5,G106,0)","v":0},null,null,null,null,null,null,null,null,null,null,null,null,null,null,null,null,null,null,null,null,null,1,1,null,null,null,null,null,null,null,null,null,null,null,null,null,null,null,null,null,null,null,null,null,null,null,5.0000000000000001E-4]
[null,null,"Plochy nových asfaltových ploch + Rezerva 10%:",null,0,null,null,null,null,null,null,null,"Plochy nových asfaltových ploch + Rezerva 10%:"]
[null,null,"Plocha č.1 - Plocha :96,20*4,00*1,1",null,423.28,null,null,null,null,null,null,null,"Plocha č.1 - Plocha :96,20*4,00*1,1"]
[null,null,"Plocha č.2 - Plocha:89,00*4,00*1,1",null,391.6,null,null,null,null,null,null,null,"Plocha č.2 - Plocha:89,00*4,00*1,1"]
[null,null,"Podél zeleného ostrůvku - Plocha:57,00*1,60*1,1",null,100.32,null,null,null,null,null,null,null,"Podél zeleného ostrůvku - Plocha:57,00*1,60*1,1"]
[23,"577131111RT2","Beton asfalt. ACO 11+ obrusný, š. do 3 m, tl. 4 cm plochy 201-1000 m2","m2",915.2,null,{"$f":"E111*F111","v":0},null,null,null,null,null,null,null,2,null,null,null,null,null,null,null,null,null,null,null,1,1,1,null,null,null,null,null,null,null,null,null,null,null,null,null,null,null,null,null,null,null,null,null,null,1,{"$f":"IF(AZ111=1,G111,0)","v":0},{"$f":"IF(AZ111=2,G111,0)","v":0},{"$f":"IF(AZ111=3,G111,0)","v":0},{"$f":"IF(AZ111=4,G111,0)","v":0},{"$f":"IF(AZ111=5,G111,0)","v":0},null,null,null,null,null,null,null,null,null,null,null,null,null,null,null,null,null,null,null,null,null,1,1,null,null,null,null,null,null,null,null,null,null,null,null,null,null,null,null,null,null,null,null,null,null,null,0.10373]
[null,null,"Plochy nových asfaltových ploch + Rezerva 10%:",null,0,null,null,null,null,null,null,null,"Plochy nových asfaltových ploch + Rezerva 10%:"]
[null,null,"Plocha č.1 - Plocha :96,20*4,00*1,1",null,423.28,null,null,null,null,null,null,null,"Plocha č.1 - Plocha :96,20*4,00*1,1"]
[null,null,"Plocha č.2 - Plocha:89,00*4,00*1,1",null,391.6,null,null,null,null,null,null,null,"Plocha č.2 - Plocha:89,00*4,00*1,1"]
[null,null,"Podél zeleného ostrůvku - Plocha:57,00*1,60*1,1",null,100.32,null,null,null,null,null,null,null,"Podél zeleného ostrůvku - Plocha:57,00*1,60*1,1"]
[24,"596215021R00","Kladení zámkové dlažby tl. 6 cm do drtě tl. 4 cm ","m2",30.3,null,{"$f":"E116*F116","v":0},null,null,null,null,null,null,null,2,null,null,null,null,null,null,null,null,null,null,null,1,1,1,null,null,null,null,null,null,null,null,null,null,null,null,null,null,null,null,null,null,null,null,null,null,1,{"$f":"IF(AZ116=1,G116,0)","v":0},{"$f":"IF(AZ116=2,G116,0)","v":0},{"$f":"IF(AZ116=3,G116,0)","v":0},{"$f":"IF(AZ116=4,G116,0)","v":0},{"$f":"IF(AZ116=5,G116,0)","v":0},null,null,null,null,null,null,null,null,null,null,null,null,null,null,null,null,null,null,null,null,null,1,1,null,null,null,null,null,null,null,null,null,null,null,null,null,null,null,null,null,null,null,null,null,null,null,7.3899999999999993E-2]
[null,null,"Plocha u spojovacího chodníku:10,10*3,00",null,30.3,null,null,null,null,null,null,null,"Plocha u spojovacího chodníku:10,10*3,00"]
[25,"596291111R00","Řezání zámkové dlažby tl. 60 mm ","m",11.615,null,{"$f":"E118*F118","v":0},null,null,null,null,null,null,null,2,null,null,null,null,null,null,null,null,null,null,null,1,1,1,null,null,null,null,null,null,null,null,null,null,null,null,null,null,null,null,null,null,null,null,null,null,1,{"$f":"IF(AZ118=1,G118,0)","v":0},{"$f":"IF(AZ118=2,G118,0)","v":0},{"$f":"IF(AZ118=3,G118,0)","v":0},{"$f":"IF(AZ118=4,G118,0)","v":0},{"$f":"IF(AZ118=5,G118,0)","v":0},null,null,null,null,null,null,null,null,null,null,null,null,null,null,null,null,null,null,null,null,null,1,1,null,null,null,null,null,null,null,null,null,null,null,null,null,null,null,null,null,null,null,null,null,null,null,3.3E-4]
[null,null,"Plocha u spojovacího chodníku:10,10*1,15",null,11.615,null,null,null,null,null,null,null,"Plocha u spojovacího chodníku:10,10*1,15"]
[26,"599142111RRX","Úprava zálivky pracovní spáry ","m",446.4,null,{"$f":"E120*F120","v":0},null,null,null,null,null,null,null,2,null,null,null,null,null,null,null,null,null,null,null,1,1,1,null,null,null,null,null,null,null,null,null,null,null,null,null,null,null,null,null,null,null,null,null,null,1,{"$f":"IF(AZ120=1,G120,0)","v":0},{"$f":"IF(AZ120=2,G120,0)","v":0},{"$f":"IF(AZ120=3,G120,0)","v":0},{"$f":"IF(AZ120=4,G120,0)","v":0},{"$f":"IF(AZ120=5,G120,0)","v":0},null,null,null,null,null,null,null,null,null,null,null,null,null,null,null,null,null,null,null,null,null,1,1,null,null,null,null,null,null,null,null,null,null,null,null,null,null,null,null,null,null,null,null,null,null,null,2.2399999999999998E-3]
[null,null,"Včetně vyčištění spár, zalití spár asfaltovou zálivkou, nátěru asfaltovým lakem a posyp drtí.",null,null,null,null,null,null,null,null,"Včetně vyčištění spár, zalití spár asfaltovou zálivkou, nátěru asfaltovým lakem a posyp drtí.",null,null,3]
[null,null,"Plocha č.1 - Plocha podél stávající přídlažby:(96,20+4,00)*2",null,200.4,null,null,null,null,null,null,null,"Plocha č.1 - Plocha podél stávající přídlažby:(96,20+4,00)*2"]
[null,null,"Plocha č.2 - Plocha podél stávající přídlažby:(89,00+4,00)*2",null,186,null,null,null,null,null,null,null,"Plocha č.2 - Plocha podél stávající přídlažby:(89,00+4,00)*2"]
[null,null,"Podél zeleného ostrůvku - Stávající přídlažba:60,00",null,60,null,null,null,null,null,null,null,"Podél zeleného ostrůvku - Stávající přídlažba:60,00"]
[27,"59245020.R","Dlažba zámková přírodní 200/100/60 mm","m2",31.815000000000001,null,{"$f":"E125*F125","v":0},null,null,null,null,null,null,null,2,null,null,null,null,null,null,null,null,null,null,null,3,1,"59245020.R",null,null,null,null,null,null,null,null,null,null,null,null,null,null,null,null,null,null,null,null,null,null,1,{"$f":"IF(AZ125=1,G125,0)","v":0},{"$f":"IF(AZ125=2,G125,0)","v":0},{"$f":"IF(AZ125=3,G125,0)","v":0},{"$f":"IF(AZ125=4,G125,0)","v":0},{"$f":"IF(AZ125=5,G125,0)","v":0},null,null,null,null,null,null,null,null,null,null,null,null,null,null,null,null,null,null,null,null,null,3,1,null,null,null,null,null,null,null,null,null,null,null,null,null,null,null,null,null,null,null,null,null,null,null,0.12959999999999999]
[null,null,"Plocha u spojovacího chodníku:10,10*3,00*1,05",null,31.815000000000001,null,null,null,null,null,null,null,"Plocha u spojovacího chodníku:10,10*3,00*1,05"]
[null,"Celkem za",{"$f":"CONCATENATE(B89,\" \",C89)","v":"5 Komunikace"},null,null,null,{"$f":"SUM(G89:G126)","v":0},null,null,null,null,null,null,null,4,null,null,null,null,null,null,null,null,null,null,null,null,null,null,null,null,null,null,null,null,null,null,null,null,null,null,null,null,null,null,null,null,null,null,null,null,null,{"$f":"SUM(BA89:BA126)","v":0},{"$f":"SUM(BB89:BB126)","v":0},{"$f":"SUM(BC89:BC126)","v":0},{"$f":"SUM(BD89:BD126)","v":0},{"$f":"SUM(BE89:BE126)","v":0}]
["Díl:","8","Trubní vedení",null,null,null,null,null,null,null,null,null,null,null,1]
[28,"899332111RRX","Výšková úprava vstupu do 20 cm, snížení poklopu včetně dodávky nového samonivelačního poklopu","kus",1,null,{"$f":"E129*F129","v":0},null,null,null,null,null,null,null,2,null,null,null,null,null,null,null,null,null,null,null,1,1,1,null,null,null,null,null,null,null,null,null,null,null,null,null,null,null,null,null,null,null,null,null,null,1,{"$f":"IF(AZ129=1,G129,0)","v":0},{"$f":"IF(AZ129=2,G129,0)","v":0},{"$f":"IF(AZ129=3,G129,0)","v":0},{"$f":"IF(AZ129=4,G129,0)","v":0},{"$f":"IF(AZ129=5,G129,0)","v":0},null,null,null,null,null,null,null,null,null,null,null,null,null,null,null,null,null,null,null,null,null,1,1,null,null,null,null,null,null,null,null,null,null,null,null,null,null,null,null,null,null,null,null,null,null,null,0.32973999999999998]
[null,null,"Samonivelační poklop s odvětráním.",null,null,null,null,null,null,null,null,"Samonivelační poklop s odvětráním.",null,null,3]
[null,"Celkem za",{"$f":"CONCATENATE(B128,\" \",C128)","v":"8 Trubní vedení"},null,null,null,{"$f":"SUM(G128:G130)","v":0},null,null,null,null,null,null,null,4,null,null,null,null,null,null,null,null,null,null,null,null,null,null,null,null,null,null,null,null,null,null,null,null,null,null,null,null,null,null,null,null,null,null,null,null,null,{"$f":"SUM(BA128:BA130)","v":0},{"$f":"SUM(BB128:BB130)","v":0},{"$f":"SUM(BC128:BC130)","v":0},{"$f":"SUM(BD128:BD130)","v":0},{"$f":"SUM(BE128:BE130)","v":0}]
["Díl:","91","Doplňující práce na komunikaci",null,null,null,null,null,null,null,null,null,null,null,1]
[29,"914001121RT6","Osaz.sloupku dopr.značky vč. bet.základu+Al patka včetně dodávky sloupku a značky B2","kus",5,null,{"$f":"E133*F133","v":0},null,null,null,null,null,null,null,2,null,null,null,null,null,null,null,null,null,null,null,1,1,1,null,null,null,null,null,null,null,null,null,null,null,null,null,null,null,null,null,null,null,null,null,null,1,{"$f":"IF(AZ133=1,G133,0)","v":0},{"$f":"IF(AZ133=2,G133,0)","v":0},{"$f":"IF(AZ133=3,G133,0)","v":0},{"$f":"IF(AZ133=4,G133,0)","v":0},{"$f":"IF(AZ133=5,G133,0)","v":0},null,null,null,null,null,null,null,null,null,null,null,null,null,null,null,null,null,null,null,null,null,1,1,null,null,null,null,null,null,null,null,null,null,null,null,null,null,null,null,null,null,null,null,null,null,null,0.1176]
[null,null,"Součástí položky je i odstranění části stávajícího asfaltu a štěrků a zpětné zalizí po montáži Al patky",null,null,null,null,null,null,null,null,"Součástí položky je i odstranění části stávajícího asfaltu a štěrků a zpětné zalizí po montáži Al patky",null,null,3]
[null,null,"Svislé DZ:",null,0,null,null,null,null,null,null,null,"Svislé DZ:"]
[null,null,"Slouply pro B2:5",null,5,null,null,null,null,null,null,null,"Slouply pro B2:5"]
[30,"915711121R00","Vodor.značení dělicích čar 12 cm plastem,nehlučné ","m",1695,null,{"$f":"E137*F137","v":0},null,null,null,null,null,null,null,2,null,null,null,null,null,null,null,null,null,null,null,1,1,1,null,null,null,null,null,null,null,null,null,null,null,null,null,null,null,null,null,null,null,null,null,null,1,{"$f":"IF(AZ137=1,G137,0)","v":0},{"$f":"IF(AZ137=2,G137,0)","v":0},{"$f":"IF(AZ137=3,G137,0)","v":0},{"$f":"IF(AZ137=4,G137,0)","v":0},{"$f":"IF(AZ137=5,G137,0)","v":0},null,null,null,null,null,null,null,null,null,null,null,null,null,null,null,null,null,null,null,null,null,1,1,null,null,null,null,null,null,null,null,null,null,null,null,null,null,null,null,null,null,null,null,null,null,null,4.4000000000000002E-4]
[null,null,"Vodorovné DZ:",null,0,null,null,null,null,null,null,null,"Vodorovné DZ:"]
[null,null,"Nové parkoviště - V 10c:1295,00",null,1295,null,null,null,null,null,null,null,"Nové parkoviště - V 10c:1295,00"]
[null,null,"Obnova značení Spodní parkoviště - V 10c:400,00",null,400,null,null,null,null,null,null,null,"Obnova značení Spodní parkoviště - V 10c:400,00"]
[31,"915721121R00","Vodorovné značení stopčar,zeber atd.plastem,nehluč ","m2",245,null,{"$f":"E141*F141","v":0},null,null,null,null,null,null,null,2,null,null,null,null,null,null,null,null,null,null,null,1,1,1,null,null,null,null,null,null,null,null,null,null,null,null,null,null,null,null,null,null,null,null,null,null,1,{"$f":"IF(AZ141=1,G141,0)","v":0},{"$f":"IF(AZ141=2,G141,0)","v":0},{"$f":"IF(AZ141=3,G141,0)","v":0},{"$f":"IF(AZ141=4,G141,0)","v":0},{"$f":"IF(AZ141=5,G141,0)","v":0},null,null,null,null,null,null,null,null,null,null,null,null,null,null,null,null,null,null,null,null,null,1,1,null,null,null,null,null,null,null,null,null,null,null,null,null,null,null,null,null,null,null,null,null,null,null,3.7000000000000002E-3]
[null,null,"Vodorovné DZ:",null,0,null,null,null,null,null,null,null,"Vodorovné DZ:"]
[null,null,"V9a, V13a, V 11a:245,00",null,245,null,null,null,null,null,null,null,"V9a, V13a, V 11a:245,00"]
[32,"915791111R00","Předznačení pro značení dělící čáry,vodící proužky ","m",1295,null,{"$f":"E144*F144","v":0},null,null,null,null,null,null,null,2,null,null,null,null,null,null,null,null,null,null,null,1,1,1,null,null,null,null,null,null,null,null,null,null,null,null,null,null,null,null,null,null,null,null,null,null,1,{"$f":"IF(AZ144=1,G144,0)","v":0},{"$f":"IF(AZ144=2,G144,0)","v":0},{"$f":"IF(AZ144=3,G144,0)","v":0},{"$f":"IF(AZ144=4,G144,0)","v":0},{"$f":"IF(AZ144=5,G144,0)","v":0},null,null,null,null,null,null,null,null,null,null,null,null,null,null,null,null,null,null,null,null,null,1,1,null,null,null,null,null,null,null,null,null,null,null,null,null,null,null,null,null,null,null,null,null,null,null,0]
[null,null,"Vodorovné DZ:",null,0,null,null,null,null,null,null,null,"Vodorovné DZ:"]
[null,null,"V 10c:1295,00",null,1295,null,null,null,null,null,null,null,"V 10c:1295,00"]
[33,"915791112R00","Předznačení pro značení stopčáry, zebry, nápisů ","m2",245,null,{"$f":"E147*F147","v":0},null,null,null,null,null,null,null,2,null,null,null,null,null,null,null,null,null,null,null,1,1,1,null,null,null,null,null,null,null,null,null,null,null,null,null,null,null,null,null,null,null,null,null,null,1,{"$f":"IF(AZ147=1,G147,0)","v":0},{"$f":"IF(AZ147=2,G147,0)","v":0},{"$f":"IF(AZ147=3,G147,0)","v":0},{"$f":"IF(AZ147=4,G147,0)","v":0},{"$f":"IF(AZ147=5,G147,0)","v":0},null,null,null,null,null,null,null,null,null,null,null,null,null,null,null,null,null,null,null,null,null,1,1,null,null,null,null,null,null,null,null,null,null,null,null,null,null,null,null,null,null,null,null,null,null,null,0]
[null,null,"Vodorovné DZ:",null,0,null,null,null,null,null,null,null,"Vodorovné DZ:"]
[null,null,"V9a, V13a, V11a:245,00",null,245,null,null,null,null,null,null,null,"V9a, V13a, V11a:245,00"]
[34,"916561111RT4","Osazení záhon.obrubníků do lože z C 12/15 s opěrou včetně obrubníku  50/5/25 cm","m",26.2,null,{"$f":"E150*F150","v":0},null,null,null,null,null,null,null,2,null,null,null,null,null,null,null,null,null,null,null,1,0,0,null,null,null,null,null,null,null,null,null,null,null,null,null,null,null,null,null,null,null,null,null,null,1,{"$f":"IF(AZ150=1,G150,0)","v":0},{"$f":"IF(AZ150=2,G150,0)","v":0},{"$f":"IF(AZ150=3,G150,0)","v":0},{"$f":"IF(AZ150=4,G150,0)","v":0},{"$f":"IF(AZ150=5,G150,0)","v":0},null,null,null,null,null,null,null,null,null,null,null,null,null,null,null,null,null,null,null,null,null,1,0,null,null,null,null,null,null,null,null,null,null,null,null,null,null,null,null,null,null,null,null,null,null,null,0.15223999999999999]
[null,null,"Spojovací chodník:10,10*2+3,00*2",null,26.2,null,null,null,null,null,null,null,"Spojovací chodník:10,10*2+3,00*2"]
[35,"917862114RU2","Osazení stojat. obrub.bet. s opěrou,lože z C 25/30 včetně obrubníku ABO 100/15/25","m",60,null,{"$f":"E152*F152","v":0},null,null,null,null,null,null,null,2,null,null,null,null,null,null,null,null,null,null,null,1,1,1,null,null,null,null,null,null,null,null,null,null,null,null,null,null,null,null,null,null,null,null,null,null,1,{"$f":"IF(AZ152=1,G152,0)","v":0},{"$f":"IF(AZ152=2,G152,0)","v":0},{"$f":"IF(AZ152=3,G152,0)","v":0},{"$f":"IF(AZ152=4,G152,0)","v":0},{"$f":"IF(AZ152=5,G152,0)","v":0},null,null,null,null,null,null,null,null,null,null,null,null,null,null,null,null,null,null,null,null,null,1,1,null,null,null,null,null,null,null,null,null,null,null,null,null,null,null,null,null,null,null,null,null,null,null,0.26980999999999999]
[null,null,"Podél upravovaného zeleného ostrůvku :60,00",null,60,null,null,null,null,null,null,null,"Podél upravovaného zeleného ostrůvku :60,00"]
[36,"919731122R00","Zarovnání styčné plochy živičné tl. do 10 cm ","m",446.4,null,{"$f":"E154*F154","v":0},null,null,null,null,null,null,null,2,null,null,null,null,null,null,null,null,null,null,null,1,1,1,null,null,null,null,null,null,null,null,null,null,null,null,null,null,null,null,null,null,null,null,null,null,1,{"$f":"IF(AZ154=1,G154,0)","v":0},{"$f":"IF(AZ154=2,G154,0)","v":0},{"$f":"IF(AZ154=3,G154,0)","v":0},{"$f":"IF(AZ154=4,G154,0)","v":0},{"$f":"IF(AZ154=5,G154,0)","v":0},null,null,null,null,null,null,null,null,null,null,null,null,null,null,null,null,null,null,null,null,null,1,1,null,null,null,null,null,null,null,null,null,null,null,null,null,null,null,null,null,null,null,null,null,null,null,0]
[null,null,"Plocha č.1 - Plocha podél stávající přídlažby:(96,20+4,00)*2",null,200.4,null,null,null,null,null,null,null,"Plocha č.1 - Plocha podél stávající přídlažby:(96,20+4,00)*2"]
[null,null,"Plocha č.2 - Plocha podél stávající přídlažby:(89,00+4,00)*2",null,186,null,null,null,null,null,null,null,"Plocha č.2 - Plocha podél stávající přídlažby:(89,00+4,00)*2"]
[null,null,"Podél zeleného ostrůvku - Stávající přídlažba:60,00",null,60,null,null,null,null,null,null,null,"Podél zeleného ostrůvku - Stávající přídlažba:60,00"]
[37,"966006132R00","Odstranění doprav.značek se sloupky, s bet.patkami ","kus",9,null,{"$f":"E158*F158","v":0},null,null,null,null,null,null,null,2,null,null,null,null,null,null,null,null,null,null,null,1,1,1,null,null,null,null,null,null,null,null,null,null,null,null,null,null,null,null,null,null,null,null,null,null,1,{"$f":"IF(AZ158=1,G158,0)","v":0},{"$f":"IF(AZ158=2,G158,0)","v":0},{"$f":"IF(AZ158=3,G158,0)","v":0},{"$f":"IF(AZ158=4,G158,0)","v":0},{"$f":"IF(AZ158=5,G158,0)","v":0},null,null,null,null,null,null,null,null,null,null,null,null,null,null,null,null,null,null,null,null,null,1,1,null,null,null,null,null,null,null,null,null,null,null,null,null,null,null,null,null,null,null,null,null,null,null,0]
[null,null,"Plocha č.1 - Značka + 2x sloupek:5",null,5,null,null,null,null,null,null,null,"Plocha č.1 - Značka + 2x sloupek:5"]
[null,null,"Plocha č.2 - Značka + 2x sloupek:4",null,4,null,null,null,null,null,null,null,"Plocha č.2 - Značka + 2x sloupek:4"]
[null,"Celkem za",{"$f":"CONCATENATE(B132,\" \",C132)","v":"91 Doplňující práce na komunikaci"},null,null,null,{"$f":"SUM(G132:G160)","v":0},null,null,null,null,null,null,null,4,null,null,null,null,null,null,null,null,null,null,null,null,null,null,null,null,null,null,null,null,null,null,null,null,null,null,null,null,null,null,null,null,null,null,null,null,null,{"$f":"SUM(BA132:BA160)","v":0},{"$f":"SUM(BB132:BB160)","v":0},{"$f":"SUM(BC132:BC160)","v":0},{"$f":"SUM(BD132:BD160)","v":0},{"$f":"SUM(BE132:BE160)","v":0}]
["Díl:","93","Dokončovací práce inženýrských staveb",null,null,null,null,null,null,null,null,null,null,null,1]
[38,"938908411RRX","Očištění povrchu krytu vodou ","m2",3300,null,{"$f":"E163*F163","v":0},null,null,null,null,null,null,null,2,null,null,null,null,null,null,null,null,null,null,null,1,1,1,null,null,null,null,null,null,null,null,null,null,null,null,null,null,null,null,null,null,null,null,null,null,1,{"$f":"IF(AZ163=1,G163,0)","v":0},{"$f":"IF(AZ163=2,G163,0)","v":0},{"$f":"IF(AZ163=3,G163,0)","v":0},{"$f":"IF(AZ163=4,G163,0)","v":0},{"$f":"IF(AZ163=5,G163,0)","v":0},null,null,null,null,null,null,null,null,null,null,null,null,null,null,null,null,null,null,null,null,null,1,1,null,null,null,null,null,null,null,null,null,null,null,null,null,null,null,null,null,null,null,null,null,null,null,1.0000000000000001E-5]
[null,null,"Očištění před realizací vodorovného dopravního značení",null,null,null,null,null,null,null,null,"Očištění před realizací vodorovného dopravního značení",null,null,3]
[null,null,"Celková plocha:3300,00",null,3300,null,null,null,null,null,null,null,"Celková plocha:3300,00"]
[39,"938909311R00","Odstranění nánosu z povrchu živičného nebo beton. ","m2",3300,null,{"$f":"E166*F166","v":0},null,null,null,null,null,null,null,2,null,null,null,null,null,null,null,null,null,null,null,1,1,1,null,null,null,null,null,null,null,null,null,null,null,null,null,null,null,null,null,null,null,null,null,null,1,{"$f":"IF(AZ166=1,G166,0)","v":0},{"$f":"IF(AZ166=2,G166,0)","v":0},{"$f":"IF(AZ166=3,G166,0)","v":0},{"$f":"IF(AZ166=4,G166,0)","v":0},{"$f":"IF(AZ166=5,G166,0)","v":0},null,null,null,null,null,null,null,null,null,null,null,null,null,null,null,null,null,null,null,null,null,1,1,null,null,null,null,null,null,null,null,null,null,null,null,null,null,null,null,null,null,null,null,null,null,null,0]
[null,null,"Celková plocha:3300,00",null,3300,null,null,null,null,null,null,null,"Celková plocha:3300,00"]
[null,"Celkem za",{"$f":"CONCATENATE(B162,\" \",C162)","v":"93 Dokončovací práce inženýrských staveb"},null,null,null,{"$f":"SUM(G162:G167)","v":0},null,null,null,null,null,null,null,4,null,null,null,null,null,null,null,null,null,null,null,null,null,null,null,null,null,null,null,null,null,null,null,null,null,null,null,null,null,null,null,null,null,null,null,null,null,{"$f":"SUM(BA162:BA167)","v":0},{"$f":"SUM(BB162:BB167)","v":0},{"$f":"SUM(BC162:BC167)","v":0},{"$f":"SUM(BD162:BD167)","v":0},{"$f":"SUM(BE162:BE167)","v":0}]
["Díl:","99","Staveništní přesun hmot",null,null,null,null,null,null,null,null,null,null,null,1]
[40,"998225311R00","Přesun hmot, oprava komunikací, kryt živič. a bet. ","t",960.96593295000002,null,{"$f":"E170*F170","v":0},null,null,null,null,null,null,null,2,null,null,null,null,null,null,null,null,null,null,null,7,1,2,null,null,null,null,null,null,null,null,null,null,null,null,null,null,null,null,null,null,null,null,null,null,1,{"$f":"IF(AZ170=1,G170,0)","v":0},{"$f":"IF(AZ170=2,G170,0)","v":0},{"$f":"IF(AZ170=3,G170,0)","v":0},{"$f":"IF(AZ170=4,G170,0)","v":0},{"$f":"IF(AZ170=5,G170,0)","v":0},null,null,null,null,null,null,null,null,null,null,null,null,null,null,null,null,null,null,null,null,null,7,1,null,null,null,null,null,null,null,null,null,null,null,null,null,null,null,null,null,null,null,null,null,null,null,0]
[null,"Celkem za",{"$f":"CONCATENATE(B169,\" \",C169)","v":"99 Staveništní přesun hmot"},null,null,null,{"$f":"SUM(G169:G170)","v":0},null,null,null,null,null,null,null,4,null,null,null,null,null,null,null,null,null,null,null,null,null,null,null,null,null,null,null,null,null,null,null,null,null,null,null,null,null,null,null,null,null,null,null,null,null,{"$f":"SUM(BA169:BA170)","v":0},{"$f":"SUM(BB169:BB170)","v":0},{"$f":"SUM(BC169:BC170)","v":0},{"$f":"SUM(BD169:BD170)","v":0},{"$f":"SUM(BE169:BE170)","v":0}]
["Díl:","M21","Elektromontáže",null,null,null,null,null,null,null,null,null,null,null,1]
[41,"210500010RRX","Venkovní osvětlení - uprava stáv. osvětlení Osazení ocelových ochran. prvků","kpl",5,null,{"$f":"E173*F173","v":0},null,null,null,null,null,null,null,2,null,null,null,null,null,null,null,null,null,null,null,2,9,9,null,null,null,null,null,null,null,null,null,null,null,null,null,null,null,null,null,null,null,null,null,null,4,{"$f":"IF(AZ173=1,G173,0)","v":0},{"$f":"IF(AZ173=2,G173,0)","v":0},{"$f":"IF(AZ173=3,G173,0)","v":0},{"$f":"IF(AZ173=4,G173,0)","v":0},{"$f":"IF(AZ173=5,G173,0)","v":0},null,null,null,null,null,null,null,null,null,null,null,null,null,null,null,null,null,null,null,null,null,2,9,null,null,null,null,null,null,null,null,null,null,null,null,null,null,null,null,null,null,null,null,null,null,null,4.8552999999999997]
[null,null,"Viz popis v PD a zadávacích podmínkách",null,null,null,null,null,null,null,null,"Viz popis v PD a zadávacích podmínkách",null,null,3]
[null,null,"Plocha č.1:3",null,3,null,null,null,null,null,null,null,"Plocha č.1:3"]
[null,null,"Plocha č.2:2",null,2,null,null,null,null,null,null,null,"Plocha č.2:2"]
[null,"Celkem za",{"$f":"CONCATENATE(B172,\" \",C172)","v":"M21 Elektromontáže"},null,null,null,{"$f":"SUM(G172:G176)","v":0},null,null,null,null,null,null,null,4,null,null,null,null,null,null,null,null,null,null,null,null,null,null,null,null,null,null,null,null,null,null,null,null,null,null,null,null,null,null,null,null,null,null,null,null,null,{"$f":"SUM(BA172:BA176)","v":0},{"$f":"SUM(BB172:BB176)","v":0},{"$f":"SUM(BC172:BC176)","v":0},{"$f":"SUM(BD172:BD176)","v":0},{"$f":"SUM(BE172:BE176)","v":0}]